fUSD/lending_fUSD_20251201
["ID","MTS","AMOUNT","RATE_DAILY","PERIOD"]
[395309536,1764609041145,-210.0,0.00017965,2]
[395309537,1764609041155,-210.165,0.00017965,2]
[395309538,1764609041165,-214.613,0.00017965,2]
[395309539,1764609041174,-220.501,0.00017965,2]
[395309540,1764609041184,-250.0,0.00017965,2]
[395309541,1764609041193,-154.681,0.00017965,2]
[395309542,1764609041203,-189.728,0.00017965,2]
[395309543,1764609041212,-162.821,0.00017965,2]
[395309544,1764609041221,-250.0,0.00017965,2]
[395309545,1764609041230,-210.788,0.00017965,2]
[395309546,1764609041240,-250.0,0.00017965,2]
[395309547,1764609041249,-163.0,0.00017965,2]
[395309548,1764609041258,-254.894,0.00017965,2]
[395309549,1764609041267,-3442.0,0.00017965,2]
[395309550,1764609041276,-160.578,0.00017965,2]
[395309551,1764609041286,-1322.0,0.00017965,2]
[395309552,1764609041295,-166.66,0.00017987,2]
[395309553,1764609041304,-600.000001,0.00018,2]
[395309554,1764609041313,-1500.0,0.00018068,2]
[395309555,1764609041323,-1500.0,0.00018068,2]
[395309556,1764609041332,-1500.0,0.00018068,2]
[395309557,1764609041343,-1000.0,0.00018082,2]
[395309558,1764609041352,-397.0,0.00018085,2]
[395309559,1764609041362,-397.0,0.00018128,2]
[395309560,1764609041371,-4005.0,0.00018128,2]
[395309561,1764609041381,-151.0,0.00018162,2]
[395309562,1764609041390,-20914.56961268,0.00018165,2]
[395309563,1764609041399,-397.0,0.00018232,2]
[395309564,1764609041409,-839.96710079,0.00018321,2]
[395309565,1764609041418,-1000.0,0.00018321,2]
[395309566,1764609041428,-1005.52147503,0.00018321,2]
[395309567,1764609041437,-1000.0,0.00018321,2]
[395309568,1764609041446,-516.50455865,0.00018321,2]
[395309569,1764609041457,-1000.0,0.00018321,2]
[395309570,1764609041466,-555.00053518,0.00018321,2]
[395309571,1764609041476,-1001.24854415,0.00018321,2]
[395309572,1764609041486,-1000.0,0.00018321,2]
[395309573,1764609041495,-1000.0,0.00018321,2]
[395309574,1764609041504,-530.66702702,0.00018321,2]
[395309575,1764609041514,-1000.0,0.00018321,2]
[395309576,1764609041523,-1000.0,0.00018321,2]
[395309577,1764609041533,-1000.0,0.00018321,2]
[395309578,1764609041543,-504.69981091,0.00018321,2]
[395309579,1764609041553,-1001.74534178,0.00018321,2]
[395309580,1764609041564,-1000.0,0.00018321,2]
[395309581,1764609041573,-338.74802037,0.00018321,2]
[395309582,1764609041582,-1000.0,0.00018321,2]
[395309583,1764609041593,-1000.0,0.00018321,2]
[395309584,1764609041603,-501.72529391,0.00018321,2]
[395309585,1764609041613,-1035.1038375,0.00018321,2]
[395309586,1764609041622,-1000.0,0.00018321,2]
[395309587,1764609041632,-506.68012113,0.00018321,2]
[395309588,1764609041643,-1000.0,0.00018321,2]
[395309589,1764609041652,-771.24315862,0.00018321,2]
[395309590,1764609041662,-1000.0,0.00018321,2]
[395309591,1764609041673,-500.0,0.00018321,2]
[395309592,1764609041683,-1000.0,0.00018321,2]
[395309593,1764609041693,-1000.0,0.00018321,2]
[395309594,1764609041702,-160.17885855,0.00018321,2]
[395309595,1764609041712,-548.82474691,0.00018321,2]
[395309596,1764609041722,-177.12269218,0.00018341,2]
[395309597,1764609041731,-474.60196722,0.00018341,2]
[395309598,1764609041741,-1000.0,0.000184,2]
[395309599,1764609041751,-600.0,0.00018445,2]
[395309600,1764609041761,-2000.0,0.00018616,2]
[395309601,1764609041770,-2000.0,0.00018616,2]
[395309602,1764609041780,-2000.0,0.00018616,2]
[395309603,1764609041789,-3292.0,0.00018619,2]
[395309604,1764609041799,-166.66,0.00018673,2]
[395309605,1764609041808,-237.63,0.00018674,2]
[395309606,1764609041818,-500.0,0.0001876,2]
[395309607,1764609041828,-1000.0,0.0001876,2]
[395309608,1764609041837,-150.74,0.000188,2]
[395309609,1764609041847,-150.74,0.000188,2]
[395309610,1764609041857,-150.74,0.000188,2]
[395309611,1764609041867,-150.74,0.000188,2]
[395309612,1764609041876,-487.452036,0.00018868,2]
[395309613,1764609041886,-1384.9832306,0.00018868,2]
[395309614,1764609041897,-503.6615541,0.00018868,2]
[395309615,1764609041907,-500.0,0.00018868,2]
[395309616,1764609041917,-945.30965623,0.00018868,2]
[395309617,1764609041927,-1500.0,0.00018868,2]
[395309618,1764609041936,-1472.98196458,0.00018868,2]
[395309619,1764609041946,-500.53815546,0.00018868,2]
[395309620,1764609041955,-1413.91043208,0.00018868,2]
[395309621,1764609041965,-1000.0,0.00018868,2]
[395309622,1764609041974,-1089.16818457,0.00018868,2]
[395309623,1764609041983,-1500.0,0.00018868,2]
[395309624,1764609041993,-1500.0,0.00018868,2]
[395309625,1764609042002,-552.19905586,0.00018868,2]
[395309626,1764609042014,-1500.0,0.00018868,2]
[395309627,1764609042025,-1500.0,0.00018868,2]
[395309628,1764609042036,-322.6107,0.00018887,2]
[395309629,1764609042046,-311.1,0.00018887,2]
[395309630,1764609042055,-267.46074303,0.00018887,2]
[395309631,1764609042065,-151.0,0.00018887,2]
[395309632,1764609042075,-599.60298507,0.00018888,2]
[395309633,1764609042085,-600.0,0.00018993,2]
[395309634,1764609042096,-5137.17392177,0.00019,2]
[395309635,1764609042106,-366.44030614,0.00019,2]
[395309636,1764609042116,-22006.64222239,0.00019,2]
[395309637,1764609042126,-22006.64222239,0.00019,2]
[395309638,1764609042136,-300.0,0.00019,2]
[395309639,1764609042146,-615.87555172,0.00019,2]
[395309640,1764609042156,-1000.0,0.00019,2]
[395309641,1764609042165,-322.70823138,0.00019083,2]
[395309642,1764609042175,-2500.0,0.00019164,2]
[395309643,1764609042184,-500.0,0.00019164,2]
[395309644,1764609042194,-151.0,0.00019178,2]
[395309645,1764609042204,-1000.0,0.00019198,2]
[395309646,1764609042214,-1598.8157754,0.00019243,2]
[395309647,1764609042224,-4475.2795991,0.00019243,2]
[395309648,1764609042234,-44799.7535671,0.00019319,2]
[395309649,1764609042243,-9268.1574473,0.00019319,2]
[395309650,1764609042253,-1577.4937194,0.00019338,2]
[395309651,1764609042262,-166.66,0.00019358,2]
[395309652,1764609042272,-1402.54143345,0.00019373,2]
[395309653,1764609042281,-604.07312412,0.00019413,2]
[395309654,1764609042291,-20914.56961268,0.00019413,2]
[395309655,1764609042301,-2030.94789734,0.00019416,2]
[395309656,1764609042311,-500.0,0.00019416,2]
[395309657,1764609042321,-188.17593625,0.00019416,2]
[395309658,1764609042330,-585.66313192,0.00019416,2]
[395309659,1764609042340,-2000.0,0.00019416,2]
[395309660,1764609042350,-1000.0,0.00019438,2]
[395309661,1764609042360,-237.63,0.00019452,2]
[395309662,1764609042369,-600.0,0.00019541,2]
[395309664,1764609042380,-187.47,0.00019584,2]
[395309666,1764609042389,-1000.0,0.000196,2]
[395309667,1764609042399,-220.38756013,0.00019622,2]
[395309668,1764609042409,-1310.37,0.00019652,2]
[395309669,1764609042419,-156.587,0.00019726,2]
[395309670,1764609042429,-152.99,0.00019751,2]
[395309671,1764609042439,-356.74402,0.00019751,2]
[395309672,1764609042449,-998.5698536,0.00019751,2]
[395309673,1764609042459,-298.98,0.00019776,2]
[395309674,1764609042469,-9996.176188,0.00019843,2]
[395309675,1764609042479,-2068.0054555,0.00019843,2]
[395309676,1764609042489,-351.9864262,0.00019867,2]
[395309677,1764609042498,-301.66,0.00019878,2]
[395309678,1764609042508,-175.13102482,0.000199,2]
[395309679,1764609042518,-259.2738847,0.000199,2]
[395309680,1764609042528,-462.4718983,0.000199,2]
[395309681,1764609042538,-16422.1315265,0.000199,2]
[395309682,1764609042547,-1227.4068321,0.00019964,2]
[395309683,1764609042557,-150.0,0.00019973,2]
[395309684,1764609042567,-160.04,0.00019997,2]
[395309685,1764609042577,-151.0,0.00019997,2]
[395309687,1764609042588,-525237.85883863,0.0002,3]
[395309691,1764609042655,-150.74,0.000188,2]
[395309692,1764609042665,-955.91617772,0.000199,2]
[395309693,1764609042677,-680.31261073,0.000199,2]
[395309695,1764609043155,-151.0,0.000159,2]
[395309696,1764609043167,-157.76452594,0.00016369,2]
[395309697,1764609043177,-605.048,0.00017481,2]
[395309698,1764609043187,-150.74,0.000188,2]
[395309699,1764609043197,-150.74,0.000188,2]
[395309700,1764609043207,-150.74,0.000188,2]
[395309701,1764609043218,-150.74,0.00019309,2]
[395309702,1764609043228,-1845.86899665,0.000199,2]
[395309703,1764609043238,-150.74,0.0001999,2]
[395309704,1764609043247,-150.74,0.0001999,2]
[395309705,1764609043257,-150.74,0.0001999,2]
[395309706,1764609043267,-150.74,0.0001999,2]
[395309707,1764609043276,-150.74,0.0001999,2]
[395309708,1764609043286,-150.74,0.0001999,2]
[395309709,1764609043296,-150.74,0.0001999,2]
[395309710,1764609043306,-150.74,0.0001999,2]
[395309711,1764609043316,-7028.84508125,0.0002,3]
[395309712,1764609043329,-3027.28102886,0.0002,3]
[395309713,1764609043341,-1518.12334425,0.0002,3]
[395309714,1764609043374,-849.45665207,0.0002,3]
[395309715,1764609043386,-265.96,0.0002,3]
[395309716,1764609043398,-463.24179436,0.0002,3]
[395309717,1764609043411,-751.20265387,0.0002,3]
[395309718,1764609043424,-4303.43110028,0.0002,3]
[395309719,1764609043435,-820.95209632,0.0002,3]
[395309720,1764609043473,-91138.42393929,0.0002,3]
[395309721,1764609044054,-613.84790354,0.00013997,2]
[395309728,1764609063701,-656.15209646,0.00013997,2]
[395309729,1764609063711,-679.0,0.00014025,2]
[395309730,1764609063721,-726990.31824923,0.0002,3]
[395309731,1764609063731,-25453.87120289,0.0002,2]
[395309732,1764609063741,-427.65493559,0.0002,3]
[395309733,1764609063752,-154.35434,0.0002,2]
[395309734,1764609063762,-154.35434,0.0002,2]
[395309735,1764609063771,-154.35434,0.0002,2]
[395309736,1764609063781,-154.35434,0.0002,2]
[395309737,1764609063791,-151.0,0.0002,2]
[395309738,1764609063801,-151.0,0.0002,2]
[395309739,1764609063811,-151.0,0.0002,2]
[395309740,1764609063821,-151.0,0.0002,2]
[395309741,1764609063831,-151.0,0.0002,2]
[395309742,1764609063841,-151.0,0.0002,2]
[395309743,1764609063851,-151.0,0.0002,2]
[395309744,1764609063861,-151.0,0.0002,2]
[395309745,1764609063872,-151.0,0.0002,2]
[395309746,1764609063882,-151.0,0.0002,2]
[395309747,1764609063891,-151.0,0.0002,2]
[395309748,1764609063901,-151.0,0.0002,2]
[395309749,1764609063911,-151.0,0.0002,2]
[395309750,1764609063921,-151.0,0.0002,2]
[395309751,1764609063931,-151.0,0.0002,2]
[395309752,1764609063940,-169.793223,0.0002,2]
[395309753,1764609063950,-324.807443,0.0002,2]
[395309754,1764609063960,-324.807443,0.0002,2]
[395309755,1764609063970,-169.793223,0.0002,2]
[395309756,1764609063980,-324.807443,0.0002,2]
[395309757,1764609063990,-169.793223,0.0002,2]
[395309758,1764609063999,-169.793223,0.0002,2]
[395309759,1764609064010,-332.434213,0.0002,2]
[395309760,1764609064023,-324.807443,0.0002,2]
[395309761,1764609064033,-332.434213,0.0002,2]
[395309762,1764609064043,-332.434213,0.0002,2]
[395309763,1764609064052,-151.0,0.0002,2]
[395309764,1764609064062,-332.434213,0.0002,2]
[395309765,1764609064072,-151.0,0.0002,2]
[395309766,1764609064082,-151.0,0.0002,2]
[395309767,1764609064091,-151.0,0.0002,2]
[395309768,1764609064103,-300.215792,0.0002,2]
[395309769,1764609064114,-698.84633,0.0002,2]
[395309770,1764609064124,-151.0,0.0002,2]
[395309771,1764609064143,-291.916309,0.0002,2]
[395309772,1764609064168,-698.84633,0.0002,2]
[395309773,1764609064185,-151.0,0.0002,2]
[395309774,1764609064206,-291.916309,0.0002,2]
[395309775,1764609064228,-151.0,0.0002,2]
[395309776,1764609064244,-698.84633,0.0002,2]
[395309777,1764609064267,-151.0,0.0002,2]
[395309778,1764609064287,-291.916309,0.0002,2]
[395309779,1764609064310,-151.0,0.0002,2]
[395309780,1764609064331,-151.0,0.0002,2]
[395309781,1764609064351,-151.0,0.0002,2]
[395309782,1764609064372,-698.84633,0.0002,2]
[395309783,1764609064391,-291.916309,0.0002,2]
[395309784,1764609064407,-151.0,0.0002,2]
[395309785,1764609064424,-151.0,0.0002,2]
[395309786,1764609064444,-151.0,0.0002,2]
[395309787,1764609064457,-151.0,0.0002,2]
[395309788,1764609064476,-151.0,0.0002,2]
[395309789,1764609064492,-151.0,0.0002,2]
[395309790,1764609064508,-151.0,0.0002,2]
[395309791,1764609064526,-343.415023,0.0002,2]
[395309792,1764609064543,-151.0,0.0002,2]
[395309793,1764609064560,-151.0,0.0002,2]
[395309794,1764609064577,-343.415023,0.0002,2]
[395309795,1764609064593,-151.0,0.0002,2]
[395309796,1764609064609,-343.415023,0.0002,2]
[395309797,1764609064625,-151.0,0.0002,2]
[395309798,1764609064640,-343.415023,0.0002,2]
[395309799,1764609064657,-151.0,0.0002,2]
[395309800,1764609064673,-304.167182,0.0002,2]
[395309801,1764609064689,-341.265497,0.0002,2]
[395309802,1764609064705,-304.167182,0.0002,2]
[395309803,1764609064722,-272.766762,0.0002,2]
[395309804,1764609064737,-520.734041,0.0002,2]
[395309805,1764609064753,-520.734041,0.0002,2]
[395309806,1764609064770,-304.167182,0.0002,2]
[395309807,1764609064787,-520.734041,0.0002,2]
[395309808,1764609064803,-304.167182,0.0002,2]
[395309809,1764609064819,-520.734041,0.0002,2]
[395309810,1764609064835,-151.0,0.0002,2]
[395309811,1764609064852,-161.26213,0.0002,2]
[395309812,1764609064867,-341.265497,0.0002,2]
[395309813,1764609064883,-341.265497,0.0002,2]
[395309814,1764609064899,-991.147998,0.0002,2]
[395309815,1764609064916,-341.265497,0.0002,2]
[395309816,1764609064930,-991.147998,0.0002,2]
[395309817,1764609064957,-151.0,0.0002,2]
[395309818,1764609064974,-151.0,0.0002,2]
[395309819,1764609064990,-991.147998,0.0002,2]
[395309820,1764609065006,-151.0,0.0002,2]
[395309821,1764609065024,-151.0,0.0002,2]
[395309822,1764609065040,-991.147998,0.0002,2]
[395309823,1764609065057,-151.0,0.0002,2]
[395309824,1764609065074,-288.79951,0.0002,2]
[395309825,1764609065091,-151.0,0.0002,2]
[395309826,1764609065109,-288.79951,0.0002,2]
[395309827,1764609065125,-255.674796,0.0002,2]
[395309828,1764609065143,-288.79951,0.0002,2]
[395309829,1764609065159,-255.674796,0.0002,2]
[395309830,1764609065175,-288.79951,0.0002,2]
[395309831,1764609065191,-255.674796,0.0002,2]
[395309832,1764609065207,-255.674796,0.0002,2]
[395309833,1764609065223,-344.931519,0.0002,2]
[395309834,1764609065239,-232.586649,0.0002,2]
[395309835,1764609065256,-151.0,0.0002,2]
[395309836,1764609065272,-344.931519,0.0002,2]
[395309837,1764609065288,-232.586649,0.0002,2]
[395309838,1764609065304,-151.0,0.0002,2]
[395309839,1764609065320,-344.931519,0.0002,2]
[395309840,1764609065336,-232.586649,0.0002,2]
[395309841,1764609065352,-344.931519,0.0002,2]
[395309842,1764609065368,-232.586649,0.0002,2]
[395309843,1764609065384,-198.99036,0.0002,2]
[395309844,1764609065401,-651.033933,0.0002,2]
[395309845,1764609065417,-198.99036,0.0002,2]
[395309846,1764609065434,-151.0,0.0002,2]
[395309847,1764609065449,-651.033933,0.0002,2]
[395309848,1764609065466,-198.99036,0.0002,2]
[395309849,1764609065482,-370.481104,0.0002,2]
[395309850,1764609065499,-651.033933,0.0002,2]
[395309851,1764609065514,-198.99036,0.0002,2]
[395309852,1764609065529,-370.481104,0.0002,2]
[395309853,1764609065545,-651.033933,0.0002,2]
[395309854,1764609065560,-151.0,0.0002,2]
[395309855,1764609065577,-1092.952541,0.0002,2]
[395309856,1764609065592,-370.481104,0.0002,2]
[395309857,1764609065609,-277.540732,0.0002,2]
[395309858,1764609065625,-370.481104,0.0002,2]
[395309859,1764609065642,-1092.952541,0.0002,2]
[395309860,1764609065658,-151.0,0.0002,2]
[395309861,1764609065674,-277.540732,0.0002,2]
[395309862,1764609065690,-1092.952541,0.0002,2]
[395309863,1764609065706,-151.0,0.0002,2]
[395309864,1764609065721,-151.0,0.0002,2]
[395309865,1764609065737,-277.540732,0.0002,2]
[395309866,1764609065753,-151.0,0.0002,2]
[395309867,1764609065770,-1092.952541,0.0002,2]
[395309868,1764609065785,-151.0,0.0002,2]
[395309869,1764609065801,-277.540732,0.0002,2]
[395309870,1764609065817,-151.0,0.0002,2]
[395309871,1764609065834,-293.650247,0.0002,2]
[395309872,1764609065851,-293.650247,0.0002,2]
[395309873,1764609065865,-293.650247,0.0002,2]
[395309874,1764609065880,-1627.006573,0.0002,2]
[395309875,1764609065896,-293.650247,0.0002,2]
[395309876,1764609065911,-1627.006573,0.0002,2]
[395309877,1764609065926,-1627.006573,0.0002,2]
[395309878,1764609065942,-1627.006573,0.0002,2]
[395309879,1764609065957,-3658.342378,0.0002,2]
[395309880,1764609065974,-3658.342378,0.0002,2]
[395309881,1764609065989,-3658.342378,0.0002,2]
[395309882,1764609066005,-3658.342378,0.0002,2]
[395309883,1764609066024,-600.0,0.00020088,2]
[395309884,1764609066040,-1000.0,0.00020116,2]
[395309885,1764609066056,-882.97,0.00020187,2]
[395309886,1764609066074,-1000.0,0.000202,2]
[395309887,1764609066092,-322.70823138,0.00020226,2]
[395309888,1764609066114,-237.63,0.0002023,2]
[395309889,1764609066130,-334.5472959,0.00020256,2]
[395309890,1764609066145,-277.35679052,0.00020256,2]
[395309891,1764609066161,-151.0,0.00020256,2]
[395309892,1764609066176,-162.380719,0.00020274,2]
[395309893,1764609066191,-1603.0,0.00020481,2]
[395309894,1764609066206,-610.0,0.00020481,2]
[395309895,1764609066221,-613.0,0.00020481,2]
[395309896,1764609066236,-1258.0,0.00020481,2]
[395309897,1764609066251,-4704.0,0.00020481,2]
[395309898,1764609066266,-6507.0,0.00020481,2]
[395309899,1764609066281,-252.0,0.00020481,2]
[395309900,1764609066297,-562.0,0.00020481,2]
[395309901,1764609066311,-4609.0,0.00020481,2]
[395309902,1764609066326,-250.0,0.00020521,2]
[395309903,1764609066342,-190.57,0.00020548,2]
[395309904,1764609066357,-977.603515,0.00020548,2]
[395309905,1764609066372,-977.603515,0.00020548,2]
[395309906,1764609066386,-977.603515,0.00020548,2]
[395309907,1764609066403,-977.603515,0.00020548,2]
[395309908,1764609066417,-600.0,0.00020636,2]
[395309909,1764609066432,-20914.56961268,0.00020661,2]
[395309910,1764609066448,-239.13235215,0.000207,2]
[395309911,1764609066462,-1000.0,0.00020795,2]
[395309912,1764609066477,-1000.0,0.000208,2]
[395309913,1764609066492,-168.3888056,0.00020822,2]
[395309914,1764609066506,-1200.0,0.00020831,2]
[395309915,1764609066521,-500.0,0.00020835,2]
[395309916,1764609066537,-702.51,0.00020959,2]
[395309917,1764609066551,-150.0,0.00020965,2]
[395309918,1764609066566,-150.0,0.00020965,2]
[395309919,1764609066580,-3442.0,0.00020965,2]
[395309920,1764609066594,-1322.0,0.00020965,2]
[395309921,1764609066609,-1225.31,0.00021,2]
[395309922,1764609066623,-350.0,0.00021,2]
[395309923,1764609066639,-237.63,0.00021008,2]
[395309924,1764609066654,-350.0,0.00021068,2]
[395309925,1764609066668,-500.0,0.00021076,2]
[395309926,1764609066681,-500.0,0.000211,2]
[395309927,1764609066695,-1000.0,0.00021118,2]
[395309928,1764609066708,-1000.0,0.00021165,2]
[395309929,1764609066722,-600.0,0.00021184,2]
[395309930,1764609066736,-322.70823138,0.0002137,2]
[395309931,1764609066750,-233.22273463,0.0002137,2]
[395309932,1764609066764,-1000.0,0.000214,2]
[395309933,1764609066778,-2000.0,0.000215,2]
[395309934,1764609066792,-1029.2599069,0.0002156,5]
[395309935,1764609066806,-1011.93467075,0.0002156,5]
[395309936,1764609066820,-1122.68612007,0.0002156,5]
[395309937,1764609066833,-1110.19598637,0.0002156,5]
[395309938,1764609066847,-1124.27085953,0.0002156,5]
[395309939,1764609066861,-1140.66159278,0.0002156,5]
[395309940,1764609066876,-1043.01049845,0.0002156,5]
[395309941,1764609066890,-1203.40987588,0.0002156,5]
[395309942,1764609066904,-450.0,0.00021616,2]
[395309943,1764609066917,-1310.37,0.00021617,2]
[395309944,1764609066931,-346.92554585,0.00021625,2]
[395309945,1764609066946,-287.61899177,0.00021625,2]
[395309946,1764609066960,-151.0,0.00021625,2]
[395309947,1764609066974,-621.78829552,0.00021627,2]
[395309948,1764609066987,-600.0,0.00021732,2]
[395309949,1764609067001,-1402.54143345,0.00021878,2]
[395309950,1764609067014,-20914.56961268,0.00021909,2]
[395309951,1764609067032,-5000.0,0.00021918,2]
[395309952,1764609067046,-500.0,0.00021998,2]
[395309953,1764609067059,-540.01082414,0.00022,2]
[395309954,1764609067073,-1631.93,0.00022,7]
[395309955,1764609067087,-200.0,0.00022,2]
[395309956,1764609067102,-348.28,0.00022,14]
[395309957,1764609067116,-150.0,0.00022,2]
[395309958,1764609067129,-500.0,0.00022,7]
[395309959,1764609067143,-500.0,0.00022,2]
[395309960,1764609067157,-500.0,0.00022,2]
[395309961,1764609067171,-1814.0,0.00022,14]
[395309962,1764609067185,-500.0,0.00022,2]
[395309963,1764609067199,-150.0,0.00022,2]
[395309964,1764609067213,-25000.0,0.00022107,3]
[395309965,1764609067227,-249.25554546,0.00022137,30]
[395309966,1764609067240,-157.85875692,0.00022137,30]
[395309967,1764609067254,-150.0,0.00022137,30]
[395309968,1764609067268,-150.0,0.00022137,30]
[395309969,1764609067281,-150.0,0.00022137,30]
[395309970,1764609067294,-288.12557967,0.00022137,30]
[395309971,1764609067308,-155.50470821,0.00022137,2]
[395309972,1764609067322,-511.0,0.00022137,30]
[395309973,1764609067335,-500.0,0.00022137,30]
[395309974,1764609067349,-150.0,0.00022137,30]
[395309975,1764609067362,-150.0,0.00022137,30]
[395309976,1764609067376,-511.0,0.00022137,30]
[395309977,1764609068053,-500.0,0.00022137,7]
[395309978,1764609068117,-500.0,0.00022137,30]
[395309979,1764609068150,-645.9977799,0.00022137,2]
[395309980,1764609068171,-500.0,0.00022137,2]
[395309981,1764609068181,-1814.0,0.00022137,14]
[395309982,1764609068191,-500.0,0.00022137,2]
[395309983,1764609068202,-25000.0,0.00022149,3]
[395309984,1764609068212,-22025.02073392,0.00022149,3]
[395309985,1764609068222,-25000.0,0.00022163,3]
[395309986,1764609068232,-551.17198987,0.00022164,2]
[395309987,1764609068242,-200.0,0.0002222,2]
[395309988,1764609068251,-177.58964234,0.00022274,30]
[395309989,1764609068261,-242.97139827,0.00022274,30]
[395309990,1764609068271,-150.0,0.00022274,30]
[395309991,1764609068281,-511.0,0.00022274,30]
[395309992,1764609068291,-500.0,0.00022274,30]
[395309993,1764609068302,-200.0,0.00022274,30]
[395309994,1764609068311,-511.0,0.00022274,30]
[395309995,1764609068322,-500.0,0.00022274,7]
[395309996,1764609068333,-500.0,0.00022274,30]
[395309997,1764609068343,-500.0,0.00022274,2]
[395309998,1764609068353,-1814.0,0.00022274,14]
[395309999,1764609068363,-500.0,0.00022274,2]
[395310000,1764609068373,-600.0,0.0002228,5]
[395310001,1764609068383,-1200.0,0.00022336,2]
[395310002,1764609068394,-266.85474904,0.00022411,30]
[395310003,1764609068403,-511.0,0.00022411,30]
[395310004,1764609068414,-500.0,0.00022411,30]
[395310005,1764609068424,-511.0,0.00022411,30]
[395310006,1764609068434,-500.0,0.00022411,7]
[395310007,1764609068444,-500.0,0.00022411,30]
[395310008,1764609068454,-500.0,0.00022411,2]
[395310009,1764609068466,-1814.0,0.00022411,14]
[395310010,1764609068475,-500.0,0.00022411,2]
[395310011,1764609068486,-322.70823138,0.00022513,2]
[395310012,1764609068496,-6453.0,0.00022529,2]
[395310013,1764609068506,-511.0,0.00022548,30]
[395310014,1764609068515,-500.0,0.00022548,30]
[395310015,1764609068526,-511.0,0.00022548,30]
[395310016,1764609068537,-500.0,0.00022548,7]
[395310017,1764609068547,-500.0,0.00022548,30]
[395310018,1764609068557,-590.74952482,0.00022548,2]
[395310019,1764609068567,-1814.0,0.00022548,14]
[395310020,1764609068577,-500.0,0.00022548,2]
[395310021,1764609068588,-511.0,0.00022685,30]
[395310022,1764609068598,-500.0,0.00022685,30]
[395310023,1764609068608,-511.0,0.00022685,30]
[395310024,1764609068618,-500.0,0.00022685,7]
[395310025,1764609068628,-500.0,0.00022685,30]
[395310026,1764609068638,-1814.0,0.00022685,14]
[395310027,1764609068648,-500.0,0.00022685,2]
[395310028,1764609068658,-500.0,0.00022728,2]
[395310029,1764609068668,-511.0,0.00022822,30]
[395310030,1764609068678,-500.0,0.00022822,30]
[395310031,1764609068688,-511.0,0.00022822,30]
[395310032,1764609068697,-500.0,0.00022822,7]
[395310033,1764609068708,-500.0,0.00022822,30]
[395310034,1764609068718,-1814.0,0.00022822,14]
[395310035,1764609068728,-500.0,0.00022822,2]
[395310036,1764609068738,-600.0,0.00022828,5]
[395310037,1764609068748,-462.4718983,0.000229,2]
[395310038,1764609068757,-1000.0,0.00022915,7]
[395310039,1764609068767,-239.13235215,0.0002294,2]
[395310040,1764609068776,-511.0,0.00022959,30]
[395310041,1764609068786,-500.0,0.00022959,30]
[395310042,1764609068796,-511.0,0.00022959,30]
[395310043,1764609068805,-500.0,0.00022959,7]
[395310044,1764609068815,-500.0,0.00022959,30]
[395310045,1764609068824,-1814.0,0.00022959,14]
[395310046,1764609068834,-500.0,0.00022959,2]
[395310047,1764609068843,-400.0,0.0002297,2]
[395310048,1764609068853,-608.0,0.00022975,2]